bitfinex/quotes_BTCUSD_20250211
["timestamp","ask_amount","ask_price","bid_price","bid_amount"]
[1739306596150,0.17406681,95300.0,95299.0,0.0069992]
[1739306598534,0.01666981,95300.0,95299.0,0.0069992]
[1739306598745,0.01866981,95300.0,95299.0,0.0039992]
[1739306598955,0.00722408,95300.0,95299.0,0.0049992]
[1739306599160,0.00522408,95300.0,95299.0,0.0049992]
[1739306599341,0.00122408,95300.0,95299.0,0.0039992]
[1739306599751,0.00322408,95300.0,95299.0,0.0039992]
[1739306600257,0.00022408,95300.0,95299.0,0.0039992]
[1739306601312,0.00222408,95300.0,95299.0,0.0039992]
[1739306604946,0.00022408,95300.0,95299.0,0.0039992]
[1739306605302,0.00222408,95300.0,95299.0,0.0039992]
[1739306605686,0.00022408,95300.0,95299.0,0.0039992]
[1739306606167,0.00122408,95300.0,95299.0,0.0039992]
[1739306607795,0.00022408,95300.0,95299.0,0.0039992]
[1739306608249,0.00122408,95300.0,95299.0,0.0039992]
[1739306609049,0.19759456,95300.0,95299.0,0.0039992]
[1739306610822,0.15762108,95300.0,95299.0,0.0039992]
[1739306611201,0.15862108,95300.0,95299.0,0.0039992]
[1739306612870,0.00022408,95300.0,95299.0,0.0039992]
[1739306613284,0.15762108,95300.0,95299.0,0.0039992]
[1739306614123,0.15862108,95300.0,95299.0,0.0039992]
[1739306615390,0.15762108,95300.0,95299.0,0.0039992]
[1739306615546,0.15862108,95300.0,95299.0,0.0039992]
[1739306618867,0.26112473,95300.0,95299.0,0.0039992]
[1739306619085,0.38392473,95300.0,95299.0,0.0039992]
[1739306619477,5.43392473,95300.0,95299.0,0.0039992]
[1739306620012,5.46328934,95300.0,95299.0,0.0039992]
[1739306620161,4.54448934,95300.0,95299.0,0.0039992]
[1739306620372,3.72928934,95300.0,95299.0,0.0039992]
[1739306620593,1.03868934,95300.0,95299.0,0.0039992]
[1739306620771,0.91448934,95300.0,95299.0,0.0039992]
[1739306621196,0.91548934,95300.0,95299.0,0.0039992]
[1739306621375,0.93813072,95300.0,95299.0,0.0039992]
[1739306621557,0.90576611,95300.0,95299.0,0.0039992]
[1739306621759,0.91176611,95300.0,95299.0,0.0049992]
[1739306622200,0.92821324,95300.0,95299.0,0.0049992]
[1739306622556,0.90976611,95300.0,95299.0,0.0049992]
[1739306622980,0.91176611,95300.0,95299.0,0.0049992]
[1739306624066,0.90776611,95300.0,95299.0,0.0039992]
[1739306624524,0.91176611,95300.0,95299.0,0.0049992]
[1739306624829,0.90976611,95300.0,95299.0,0.0049992]
[1739306625057,0.91176611,95300.0,95299.0,0.0049992]
[1739306625166,0.40956611,95300.0,95299.0,0.0049992]
[1739306625368,0.4302931,95300.0,95299.0,0.0039992]
[1739306625801,5.4802931,95300.0,95299.0,0.0039992]
[1739306626623,2.3382931,95300.0,95299.0,0.0039992]
[1739306626799,1.1505931,95300.0,95299.0,0.0049992]
[1739306627007,0.9192931,95300.0,95299.0,0.0049992]
[1739306627431,0.8884931,95300.0,95299.0,0.0049992]
[1739306632137,1.0384931,95300.0,95299.0,0.0049992]
[1739306632263,1.02204611,95300.0,95299.0,0.0049992]
[1739306635599,1.03849364,95300.0,95299.0,0.0049992]
[1739306636430,0.99239364,95300.0,95299.0,0.0049992]
[1739306638176,0.98839364,95300.0,95299.0,0.0039992]
[1739306638412,0.98635364,95300.0,95299.0,0.0039992]
[1739306638670,0.99135364,95300.0,95299.0,0.0039992]
[1739306639438,1.00435364,95300.0,95299.0,0.0039992]
[1739306639846,0.99135364,95300.0,95299.0,0.0039992]
[1739306640040,0.46045364,95300.0,95299.0,0.0039992]
[1739306640244,0.47345364,95300.0,95299.0,0.0039992]
[1739306640645,3.26485364,95300.0,95299.0,0.0039992]
[1739306640880,5.02545364,95300.0,95299.0,0.0039992]
[1739306641085,5.55281825,95300.0,95299.0,0.0039992]
[1739306641588,5.54781825,95300.0,95299.0,0.0039992]
[1739306641794,5.55281825,95300.0,95299.0,0.0039992]
[1739306642201,3.02191825,95300.0,95299.0,0.0039992]
[1739306642421,1.26281825,95300.0,95299.0,0.0039992]
[1739306642632,1.15581825,95300.0,95299.0,0.0039992]
[1739306642928,1.11345364,95300.0,95299.0,0.0039992]
[1739306643516,1.12645364,95300.0,95299.0,0.0039992]
[1739306643919,1.11845364,95300.0,95299.0,0.0039992]
[1739306644125,1.11345364,95300.0,95299.0,0.0039992]
[1739306644428,1.12545364,95300.0,95299.0,0.0039992]
[1739306644634,1.13045364,95300.0,95299.0,0.0039992]
[1739306645040,0.157432,95279.0,95278.0,0.0001066]
[1739306645243,0.209907,95281.0,95278.0,0.0001066]
[1739306645463,0.157432,95279.0,95278.0,0.0001066]
[1739306645847,0.209901,95283.0,95278.0,0.0001066]
[1739306646057,0.157432,95279.0,95278.0,0.0001066]
[1739306646307,0.209892,95287.0,95278.0,0.00055196]
[1739306646521,0.15743,95280.0,95278.0,0.00055196]
[1739306647077,0.16477305,95288.0,95278.0,0.00055196]
[1739306647289,0.003,95279.0,95278.0,0.00155196]
[1739306648160,0.160432,95279.0,95278.0,0.00155196]
[1739306648566,0.158432,95279.0,95278.0,0.00055196]
[1739306648769,0.157432,95279.0,95278.0,0.00055196]
[1739306650035,0.159432,95279.0,95278.0,0.00055196]
[1739306650831,0.160432,95279.0,95278.0,0.00055196]
[1739306651473,0.159432,95279.0,95278.0,0.00055196]
[1739306651695,0.158432,95279.0,95278.0,0.00055196]
[1739306651896,0.159432,95279.0,95278.0,0.00055196]
[1739306652273,0.160432,95279.0,95278.0,0.00055196]
[1739306652487,0.158432,95279.0,95278.0,0.00055196]
[1739306652685,0.160432,95279.0,95278.0,0.00055196]
[1739306653099,0.157432,95279.0,95278.0,0.00055196]
[1739306653320,0.41093565,95279.0,95278.0,0.00055196]
[1739306653538,5.46293565,95279.0,95278.0,0.00055196]
[1739306654182,5.46293565,95279.0,95262.0,0.01139362]
[1739306654411,0.307445,95271.0,95270.0,0.09877447]
[1739306654624,5.365685,95271.0,95270.0,0.09877447]
[1739306655051,5.46818865,95271.0,95270.0,0.09877447]
[1739306655458,0.41818865,95271.0,95270.0,0.09877447]
[1739306655657,5.46818865,95271.0,95270.0,0.09877447]
[1739306655859,5.47818865,95271.0,95270.0,0.09877447]
[1739306656017,5.48318865,95271.0,95270.0,0.09877447]
[1739306656214,5.47818865,95271.0,95270.0,0.09877447]
[1739306656438,5.49118865,95271.0,95270.0,0.06520447]
[1739306656644,5.52259574,95271.0,95270.0,0.06520447]
[1739306657667,5.52959574,95271.0,95270.0,0.06520447]
[1739306657928,5.50859574,95271.0,95270.0,0.06520447]
[1739306658138,5.87164931,95271.0,95270.0,0.0281491]
[1739306658335,5.87164931,95271.0,95261.0,0.00595853]
[1739306658336,0.15746,95262.0,95261.0,0.00595853]
[1739306658551,0.157477,95252.0,95249.0,0.0001065]
[1739306658757,0.157477,95252.0,95251.0,0.00027014]
[1739306659601,0.17393273,95252.0,95251.0,0.00027014]
[1739306659816,0.28043638,95252.0,95251.0,0.00027014]
[1739306660229,0.301771,95252.0,95251.0,0.00027014]
[1739306660434,5.351771,95252.0,95251.0,0.00027014]
[1739306660861,5.349771,95252.0,95251.0,0.00027014]
[1739306661065,5.36467502,95252.0,95251.0,0.00027014]
[1739306661265,5.36967502,95252.0,95251.0,0.00027014]
[1739306661487,5.37667502,95252.0,95251.0,0.00027014]
[1739306661696,5.37167502,95252.0,95251.0,0.00027014]
[1739306661901,5.39391502,95252.0,95251.0,0.00027014]
[1739306664062,5.37291502,95252.0,95251.0,0.00027014]
[1739306664283,5.37691502,95252.0,95251.0,0.00027014]
[1739306664527,5.38191502,95252.0,95251.0,0.00027014]
[1739306664991,5.37691502,95252.0,95251.0,0.00027014]
[1739306665223,5.38591502,95252.0,95251.0,0.00027014]
[1739306665456,2.08701502,95252.0,95251.0,0.00027014]
[1739306665685,1.91531502,95252.0,95251.0,0.00027014]
[1739306665921,2.05811502,95252.0,95251.0,0.00027014]
[1739306666121,0.33591502,95252.0,95251.0,0.00027014]
[1739306666579,2.39271502,95252.0,95251.0,0.00027014]
[1739306666800,3.50341502,95252.0,95251.0,0.00027014]
[1739306667027,5.38591502,95252.0,95251.0,0.00027014]
[1739306667243,3.73081502,95252.0,95251.0,0.00027014]
[1739306668225,2.81801502,95252.0,95251.0,0.00027014]
[1739306668432,2.65821502,95252.0,95251.0,0.00027014]
[1739306668631,1.93411502,95252.0,95251.0,0.00027014]
[1739306668991,1.83161137,95252.0,95251.0,0.00027014]
[1739306670964,1.83161137,95252.0,95250.0,0.00027013]
[1739306670965,1.76839802,95252.0,95250.0,0.00027013]
[1739306671182,1.76839802,95252.0,95250.0,0.00039643]
[1739306671183,4.55418165,95251.0,95250.0,0.00039643]
[1739306672441,4.56018165,95251.0,95250.0,0.00039643]
[1739306673781,4.57418165,95251.0,95250.0,0.00039643]
[1739306673991,4.58242165,95251.0,95250.0,0.00039643]
[1739306674828,4.57418165,95251.0,95250.0,0.00039643]
[1739306675029,4.58242165,95251.0,95250.0,0.00039643]
[1739306676120,0.02,95251.0,95250.0,0.00039643]
[1739306676340,0.006,95251.0,95250.0,0.12539643]
[1739306676627,0.014,95251.0,95250.0,0.12539643]
[1739306676842,0.171478,95251.0,95250.0,0.12539643]
[1739306677058,0.177478,95251.0,95250.0,0.12539643]
[1739306677394,0.163478,95251.0,95250.0,0.12539643]
[1739306677957,0.170478,95251.0,95250.0,0.12539643]
[1739306678184,0.176478,95251.0,95250.0,0.12539643]
[1739306678393,0.157478,95251.0,95250.0,0.12539643]
[1739306678607,0.163478,95251.0,95250.0,0.12539643]
[1739306679147,0.163478,95251.0,95250.0,0.07569643]
[1739306679331,0.163478,95251.0,95250.0,0.00039643]
[1739306679531,0.19293316,95251.0,95250.0,0.00039643]
[1739306680154,0.17993316,95251.0,95250.0,0.00039643]
[1739306680366,0.17393316,95251.0,95250.0,0.00039643]
[1739306680781,0.17893316,95251.0,95250.0,0.00039643]
[1739306680967,0.19193316,95251.0,95250.0,0.00039643]
[1739306681492,0.17893316,95251.0,95250.0,0.00039643]
[1739306682320,0.01690402,95252.0,95250.0,0.00039643]
[1739306682538,0.03843195,95253.0,95250.0,0.00039643]
[1739306682936,0.157477,95252.0,95251.0,0.0753]
[1739306683375,0.157477,95252.0,95251.0,0.0633]
[1739306684487,0.163477,95252.0,95251.0,0.0633]
[1739306684923,0.176477,95252.0,95251.0,0.0633]
[1739306685136,0.019,95252.0,95251.0,0.0633]
[1739306685322,0.176477,95252.0,95251.0,0.0633]
[1739306687814,0.019,95252.0,95251.0,0.0633]
[1739306688029,0.176477,95252.0,95251.0,0.0633]
[1739306691220,0.170477,95252.0,95251.0,0.0633]
[1739306691651,0.175477,95252.0,95251.0,0.0633]
[1739306692853,0.162477,95252.0,95251.0,0.0633]
[1739306693256,0.172477,95252.0,95251.0,0.0643]
[1739306695920,0.162477,95252.0,95251.0,0.0633]
[1739306696146,0.162477,95252.0,95251.0,0.0643]
[1739306696355,0.42498065,95252.0,95251.0,0.001]
[1739306696603,0.15749,95244.0,95243.0,0.0001066]
[1739306696758,0.15749,95244.0,95243.0,0.00024044]
[1739306697964,0.16049,95244.0,95243.0,0.00024044]
[1739306698363,0.003,95244.0,95243.0,0.07604044]
[1739306698781,0.003,95244.0,95243.0,0.12164044]
[1739306698984,0.16049,95244.0,95243.0,0.12164044]
[1739306699184,0.16549,95244.0,95243.0,0.12264044]
[1739306699417,0.16749,95244.0,95243.0,0.12264044]
[1739306699826,0.15749,95244.0,95243.0,0.12164044]
[1739306700085,0.16149,95244.0,95243.0,0.12264044]
[1739306700289,0.16149,95244.0,95243.0,0.00124044]
[1739306700290,0.21319643,95244.0,95243.0,0.00124044]
[1739306700594,0.15749,95244.0,95243.0,0.00024044]
[1739306700801,0.15749,95244.0,95243.0,0.00124044]
[1739306700802,0.15949,95244.0,95243.0,0.00124044]
[1739306701002,0.16349,95244.0,95243.0,0.00124044]
[1739306701459,0.18038925,95244.0,95243.0,0.00124044]
[1739306701855,0.03475568,95244.0,95236.0,0.04415286]
[1739306702099,0.157501,95237.0,95236.0,0.04425554]
[1739306703802,0.157501,95237.0,95236.0,0.04725554]
[1739306704022,0.157501,95238.0,95236.0,0.04725554]
[1739306704233,0.157501,95237.0,95236.0,0.04725554]
[1739306704981,0.157501,95237.0,95236.0,0.00310268]
[1739306706176,0.157501,95237.0,95236.0,0.00010268]
[1739306706384,0.16598245,95246.0,95237.0,0.0765]
[1739306706611,0.157497,95240.0,95237.0,0.0765]
[1739306706817,0.02147076,95238.0,95237.0,0.0755]
[1739306707400,0.02147076,95238.0,95237.0,0.0735]
[1739306708003,0.02347076,95238.0,95237.0,0.0735]
[1739306708217,0.004,95238.0,95237.0,0.0735]
[1739306709221,0.004,95238.0,95237.0,0.22470365]
[1739306709566,0.01741861,95246.0,95237.0,0.10250365]
[1739306709767,0.01741861,95246.0,95239.0,0.0487]
[1739306709971,0.14856384,95250.0,95240.0,0.10250365]
[1739306710204,0.17013222,95250.0,95240.0,0.10250365]
[1739306710411,0.17013222,95250.0,95241.0,0.0765]
[1739306710625,0.02156838,95250.0,95243.0,0.0745]
[1739306710833,0.14856384,95260.0,95244.0,0.10250365]
[1739306711033,0.14856384,95253.0,95244.0,0.10250365]
[1739306711181,0.002,95250.0,95245.0,0.00104978]
[1739306711391,0.003,95250.0,95246.0,0.10250365]
[1739306712008,0.003,95250.0,95246.0,0.11275402]
[1739306712657,0.14856384,95260.0,95246.0,0.11275402]
[1739306712794,0.002,95250.0,95246.0,0.11275402]
[1739306712992,0.00422387,95252.0,95247.0,0.0487]
[1739306713194,0.00422387,95252.0,95249.0,0.0487]
[1739306713394,0.002,95250.0,95249.0,0.0487]
[1739306713594,0.00022387,95252.0,95249.0,0.22770365]
[1739306713822,0.00122387,95252.0,95251.0,0.1242]
[1739306714025,0.00122387,95252.0,95251.0,0.22670365]
[1739306714227,0.00022387,95252.0,95251.0,0.22670365]
[1739306714484,0.00022387,95252.0,95251.0,0.22570365]
[1739306716192,0.00222387,95252.0,95251.0,0.22570365]
[1739306716319,0.00122387,95252.0,95251.0,0.22570365]
[1739306716515,0.00222387,95252.0,95251.0,0.24827402]
[1739306716816,0.00122387,95252.0,95251.0,0.24827402]
[1739306717019,0.00222387,95252.0,95251.0,0.24827402]
[1739306717406,0.00222387,95252.0,95251.0,0.22570365]
[1739306719218,0.00222387,95252.0,95251.0,0.1232]
[1739306720557,0.00022387,95252.0,95251.0,0.1232]
[1739306720759,0.00222387,95252.0,95251.0,0.1232]
[1739306721617,0.00222387,95252.0,95251.0,0.1233066]
[1739306722005,0.00022387,95252.0,95251.0,0.1233066]
[1739306722262,0.00122387,95252.0,95251.0,0.1293066]
[1739306732881,0.00122387,95252.0,95251.0,0.0061066]
[1739306733091,0.02446837,95252.0,95251.0,0.0061066]
[1739306733296,0.25984537,95252.0,95251.0,0.0061066]
[1739306733524,0.40984537,95252.0,95251.0,0.0061066]
[1739306733890,2.12091637,95252.0,95251.0,0.0061066]
[1739306734200,3.38185502,95252.0,95251.0,0.0061066]
[1739306734408,3.35715902,95252.0,95251.0,0.0011066]
[1739306734610,2.12656102,95252.0,95251.0,0.0011066]
[1739306734727,2.13456102,95252.0,95251.0,0.0021066]
[1739306734924,2.13456102,95252.0,95251.0,0.0011066]
[1739306735202,2.16012914,95252.0,95251.0,0.0001066]
[1739306735340,2.16012914,95252.0,95251.0,0.0011066]
[1739306735540,2.14088464,95252.0,95251.0,0.0011066]
[1739306735785,2.14488464,95252.0,95251.0,0.0011066]
[1739306735990,0.57527264,95252.0,95251.0,0.0011066]
[1739306736300,0.59627505,95252.0,95251.0,0.0011066]
[1739306736504,2.62418505,95252.0,95251.0,0.0011066]
[1739306737168,2.59461693,95252.0,95251.0,0.0011066]
[1739306737919,2.58261693,95252.0,95251.0,0.0001066]
[1739306738115,2.59627172,95252.0,95251.0,0.0011066]
[1739306738340,2.60027172,95252.0,95251.0,0.0011066]
[1739306739143,2.25461172,95252.0,95251.0,0.0011066]
[1739306742660,2.22556172,95252.0,95251.0,0.0011066]
[1739306743073,1.63933472,95252.0,95251.0,0.0011066]
[1739306743281,0.02868066,95252.0,95251.0,0.0011066]
[1739306743491,0.16970087,95252.0,95251.0,0.0011066]
[1739306743628,0.01222387,95252.0,95251.0,0.0011066]
[1739306743835,0.01222387,95252.0,95251.0,0.0001066]
[1739306744050,0.16170087,95252.0,95251.0,0.0001066]
[1739306744247,0.00822387,95252.0,95251.0,0.0011066]
[1739306744692,0.16970087,95252.0,95251.0,0.0011066]
[1739306745656,0.18934522,95252.0,95251.0,0.0011066]
[1739306745969,0.03186822,95252.0,95251.0,0.0011066]
[1739306746102,0.04169086,95252.0,95251.0,0.0011066]
[1739306747344,0.02204651,95252.0,95251.0,0.0011066]
[1739306747568,0.17952351,95252.0,95251.0,0.0011066]
[1739306747998,0.16970087,95252.0,95251.0,0.0011066]
[1739306748472,0.01222387,95252.0,95251.0,0.0011066]
[1739306748678,0.16970087,95252.0,95251.0,0.0011066]
[1739306750533,0.01222387,95252.0,95251.0,0.0011066]
[1739306751837,0.16970087,95252.0,95251.0,0.0011066]
[1739306752417,0.01222387,95252.0,95251.0,0.0011066]
[1739306752620,0.01222387,95252.0,95251.0,0.0765066]
[1739306756020,0.01222387,95252.0,95251.0,0.0011066]
[1739306756021,0.16970087,95252.0,95251.0,0.0011066]
[1739306759278,0.70861387,95252.0,95251.0,0.0011066]
[1739306759499,0.91239287,95252.0,95251.0,0.0011066]
[1739306759702,0.16970087,95252.0,95251.0,0.0011066]
[1739306761752,0.24480087,95252.0,95251.0,0.0011066]
[1739306762979,0.39480087,95252.0,95251.0,0.0011066]
[1739306763416,0.41125712,95252.0,95251.0,0.0011066]
[1739306768366,0.33615712,95252.0,95251.0,0.0011066]
[1739306769130,0.34439712,95252.0,95251.0,0.0011066]
[1739306773686,0.33615712,95252.0,95251.0,0.0011066]
[1739306777402,0.43866077,95252.0,95251.0,0.0011066]
[1739306777603,1.37129552,95252.0,95251.0,0.0011066]
[1739306779593,0.157501,95237.0,95236.0,0.00020928]
[1739306780779,0.157501,95237.0,95236.0,0.00420928]
[1739306781184,0.157501,95237.0,95236.0,0.00520928]
[1739306783958,0.50021,95237.0,95236.0,0.00520928]
[1739306786786,0.52093168,95237.0,95236.0,0.00520928]
[1739306786993,0.54034871,95237.0,95236.0,0.00520928]
[1739306787575,0.69034871,95237.0,95236.0,0.00520928]
[1739306787777,0.157511,95231.0,95230.0,0.0005]
[1739306787940,0.165751,95231.0,95230.0,0.00063349]
[1739306789188,0.289139,95231.0,95230.0,0.00063349]
[1739306789388,0.277151,95231.0,95230.0,0.00063349]
[1739306789557,0.165751,95231.0,95230.0,0.00063349]
[1739306790002,0.180751,95231.0,95230.0,0.00163349]
[1739306790232,0.749751,95231.0,95230.0,0.00163349]
[1739306790671,0.739751,95231.0,95230.0,0.00063349]
[1739306790849,0.749751,95231.0,95230.0,0.00163349]
[1739306791248,0.741511,95231.0,95230.0,0.00163349]
[1739306791645,0.736511,95231.0,95230.0,0.00174009]
[1739306791853,0.741511,95231.0,95230.0,0.00174009]
[1739306792055,0.731511,95231.0,95230.0,0.00074009]
[1739306792260,0.162511,95231.0,95230.0,0.00074009]
[1739306792466,0.176511,95231.0,95230.0,0.00174009]
[1739306792675,0.745511,95231.0,95230.0,0.00174009]
[1739306792875,0.735511,95231.0,95230.0,0.00074009]
[1739306793118,0.735511,95231.0,95230.0,0.00174009]
[1739306793328,0.736511,95231.0,95230.0,0.00174009]
[1739306793556,0.740511,95231.0,95230.0,0.00174009]
[1739306793769,0.730511,95231.0,95230.0,0.00074009]
[1739306793971,0.740511,95231.0,95230.0,0.00174009]
[1739306794792,0.78621743,95231.0,95230.0,0.00174009]
[1739306795118,0.740511,95231.0,95230.0,0.00174009]
[1739306795324,0.730511,95231.0,95230.0,0.00074009]
[1739306795640,0.744511,95231.0,95230.0,0.00174009]
[1739306796041,0.744511,95231.0,95230.0,0.00074009]
[1739306796042,0.734511,95231.0,95230.0,0.00074009]
[1739306796476,0.726511,95231.0,95230.0,0.00074009]
[1739306796650,0.46794826,95231.0,95230.0,0.00074009]
[1739306797084,0.668806,95231.0,95230.0,0.00174009]
[1739306798126,0.664806,95231.0,95230.0,0.00174009]
[1739306798418,0.658806,95231.0,95230.0,0.00074009]
[1739306798624,0.668806,95231.0,95230.0,0.00174009]
[1739306798820,0.672806,95231.0,95230.0,0.00174009]
[1739306799204,0.662806,95231.0,95230.0,0.00074009]
[1739306799404,0.672806,95231.0,95230.0,0.00174009]
[1739306799606,0.664806,95231.0,95230.0,0.00174009]
[1739306799834,0.664806,95231.0,95230.0,0.00074009]
[1739306800038,0.654806,95231.0,95230.0,0.00074009]
[1739306800204,0.664806,95231.0,95230.0,0.00174009]
[1739306801071,0.668806,95231.0,95230.0,0.00174009]
[1739306801292,0.664806,95231.0,95230.0,0.00174009]
[1739306801475,0.654806,95231.0,95230.0,0.00074009]
[1739306801776,0.668806,95231.0,95230.0,0.00174009]
[1739306802133,0.658806,95231.0,95230.0,0.00074009]
[1739306802532,0.668806,95231.0,95230.0,0.00174009]
[1739306803603,0.623858,95231.0,95230.0,0.00174009]
[1739306803810,0.171511,95231.0,95230.0,0.00174009]
[1739306805322,1.447706,95231.0,95230.0,0.00174009]
[1739306805501,1.003984,95231.0,95230.0,0.00174009]
[1739306805907,0.961213,95231.0,95230.0,0.00174009]
[1739306806400,0.913089,95231.0,95230.0,0.00174009]
[1739306807109,1.01559265,95231.0,95230.0,0.00174009]
[1739306807582,0.27401465,95231.0,95230.0,0.00174009]
[1739306808017,1.07128165,95231.0,95230.0,0.00174009]
[1739306808204,1.04497365,95231.0,95230.0,0.00174009]
[1739306812906,1.05497365,95231.0,95230.0,0.00174009]
[1739306813474,1.06321365,95231.0,95230.0,0.00174009]
[1739306815761,0.29225465,95231.0,95230.0,0.00174009]
[1739306815961,1.90151465,95231.0,95230.0,0.00174009]
[1739306816455,1.88939865,95231.0,95230.0,0.00174009]
[1739306817217,2.03939865,95231.0,95230.0,0.00174009]
[1739306817417,0.173,95230.0,95211.0,0.0002]
[1739306817645,0.157543,95212.0,95211.0,0.0002]
[1739306818583,0.16739092,95212.0,95211.0,0.0002]
[1739306818794,0.19503696,95211.0,95201.0,0.04621508]
[1739306819012,0.157552,95207.0,95201.0,0.04621508]
[1739306819246,0.157554,95206.0,95201.0,0.04621508]
[1739306819467,0.157553,95206.0,95201.0,0.04621508]
[1739306819693,0.157551,95207.0,95201.0,0.04621508]
[1739306819899,0.157549,95208.0,95201.0,0.04621508]
[1739306820107,0.157552,95207.0,95200.0,4e-05]
[1739306820402,0.01968085,95205.0,95200.0,4e-05]
[1739306821817,0.02068085,95205.0,95201.0,0.0777]
[1739306822022,0.004,95205.0,95201.0,0.0777]
[1739306822198,0.003,95205.0,95201.0,0.0777]
[1739306822769,0.003,95205.0,95200.0,4e-05]
[1739306823253,0.02016487,95205.0,95200.0,4e-05]
[1739306823390,0.01896652,95205.0,95200.0,4e-05]
[1739306823596,0.25506448,95210.0,95200.0,4e-05]
[1739306823794,0.001,95205.0,95200.0,4e-05]
[1739306824272,0.01966105,95204.0,95200.0,4e-05]
[1739306825557,0.01966105,95203.0,95200.0,4e-05]
[1739306827183,0.01966105,95203.0,95200.0,0.0001466]
[1739306827184,0.02066105,95203.0,95200.0,0.0001466]
[1739306827388,0.01966105,95202.0,95200.0,0.0011466]
[1739306827751,0.01966105,95202.0,95200.0,0.0001466]
[1739306828013,0.01966105,95202.0,95201.0,0.0828]
[1739306828585,0.15755,95208.0,95201.0,0.08290292]
[1739306828932,0.29605333,95210.0,95201.0,0.08290292]
[1739306829086,0.15755,95208.0,95201.0,0.08290292]
[1739306829630,0.19503696,95211.0,95201.0,0.08290292]
[1739306829845,0.01965519,95207.0,95201.0,0.08290292]
[1739306830163,0.001,95202.0,95201.0,0.08290292]
[1739306830645,0.01965519,95207.0,95201.0,0.08290292]
[1739306831046,0.01965519,95207.0,95203.0,0.1291]
[1739306831605,0.01965519,95206.0,95203.0,0.1281]
[1739306832215,0.01965519,95206.0,95203.0,0.0463]
[1739306832745,0.01965519,95206.0,95203.0,0.0473]
[1739306832974,0.01965519,95206.0,95203.0,0.0463]
[1739306833393,0.09751848,95211.0,95203.0,0.0463]
[1739306833592,0.15755,95208.0,95203.0,0.0463]
[1739306833792,0.30757948,95211.0,95203.0,0.0463]
[1739306834128,0.001,95206.0,95203.0,0.0463]
[1739306834334,0.001,95206.0,95203.0,0.0483]
[1739306834603,0.15755,95208.0,95203.0,0.0463]
[1739306834813,0.157551,95207.0,95203.0,0.0463]
[1739306834953,0.157551,95207.0,95203.0,0.0473]
[1739306835345,0.09851848,95211.0,95203.0,0.0473]
[1739306835768,0.157551,95207.0,95203.0,0.0463]
[1739306836167,0.157553,95206.0,95203.0,0.0463]
[1739306836381,0.001,95208.0,95203.0,0.0463]
[1739306836590,0.001,95208.0,95201.0,0.00010292]
[1739306836808,0.157559,95202.0,95201.0,0.00010292]
[1739306837871,0.17723586,95202.0,95201.0,0.00010292]
[1739306838066,0.17823586,95202.0,95201.0,0.00010292]
[1739306838409,0.17823586,95202.0,95201.0,0.00110292]
[1739306840860,0.17723586,95202.0,95201.0,0.00110292]
[1739306841123,0.17723586,95202.0,95201.0,0.00010292]
[1739306841335,0.158559,95202.0,95201.0,0.00110292]
[1739306841756,0.157559,95202.0,95201.0,0.00010292]
[1739306841980,0.003,95202.0,95184.0,0.04561952]
[1739306842180,0.19503696,95194.0,95184.0,0.00044674]
[1739306842320,0.210099,95193.0,95184.0,0.00044674]
[1739306842525,0.157579,95190.0,95184.0,0.00044674]
[1739306842791,0.157587,95185.0,95184.0,0.00044674]
[1739306843608,0.1772424,95185.0,95184.0,0.00044674]
[1739306844604,0.1772424,95185.0,95184.0,0.00244674]
[1739306844934,0.1772424,95185.0,95184.0,0.00044674]
[1739306845127,0.157604,95175.0,95174.0,0.0001066]
[1739306845346,0.157604,95175.0,95174.0,0.00024048]
[1739306845543,0.14871167,95184.0,95166.0,0.01430088]
[1739306845728,0.14871167,95176.0,95166.0,0.01430088]
[1739306846227,0.15761,95172.0,95166.0,0.01430088]
[1739306846449,0.157612,95171.0,95166.0,0.01430088]
[1739306846649,0.14871167,95176.0,95166.0,0.01430088]
[1739306846916,0.210145,95173.0,95166.0,0.01430088]
[1739306847271,0.001,95172.0,95166.0,0.01630088]
[1739306847429,0.0520924,95172.0,95166.0,0.01630088]
[1739306847637,0.157616,95168.0,95166.0,0.01430088]
[1739306847846,0.66094565,95167.0,95166.0,0.01430088]
[1739306848095,0.76314337,95167.0,95166.0,0.01630088]
[1739306848300,0.77961054,95167.0,95166.0,0.01430088]
[1739306848494,0.78415782,95167.0,95166.0,0.001]
[1739306848725,0.85038982,95167.0,95166.0,0.001]
[1739306849255,0.92448222,95167.0,95166.0,0.001]
[1739306850107,0.023,95166.0,95147.0,0.02331408]
[1739306850321,0.210184,95155.0,95147.0,0.02335872]
[1739306850526,0.157641,95153.0,95147.0,0.02335872]
[1739306850747,0.14871167,95160.0,95148.0,0.1291]
[1739306850955,0.29742334,95160.0,95148.0,0.1291]
[1739306851154,0.14871167,95160.0,95148.0,0.1291]
[1739306851357,0.14871167,95160.0,95148.0,0.23160365]
[1739306851560,0.001,95155.0,95148.0,0.23160365]
[1739306851922,0.001,95155.0,95148.0,0.23040365]
[1739306852364,0.001,95155.0,95149.0,0.12787989]
[1739306852562,0.001,95155.0,95149.0,0.12647989]
[1739306852763,0.001,95155.0,95149.0,0.10250365]
[1739306853143,0.14971167,95160.0,95149.0,0.10250365]
[1739306853552,0.15171167,95160.0,95149.0,0.10250365]
[1739306853761,0.15171167,95160.0,95149.0,0.10450365]
[1739306854030,0.14871167,95160.0,95149.0,0.10250365]
[1739306854221,0.14971167,95160.0,95149.0,0.10250365]
[1739306854450,0.14971167,95160.0,95149.0,0.10450365]
[1739306854981,0.14971167,95160.0,95150.0,0.0789]
[1739306855179,0.14971167,95160.0,95151.0,0.10250365]
[1739306855819,0.001,95160.0,95151.0,0.10250365]
[1739306856252,0.16676053,95161.0,95151.0,0.10250365]
[1739306856471,0.001,95160.0,95151.0,0.10250365]
[1739306856626,0.001,95160.0,95151.0,0.13010989]
[1739306857021,0.14871167,95161.0,95151.0,0.13010989]
[1739306857235,0.001,95160.0,95151.0,0.13510989]
[1739306857452,0.001,95160.0,95151.0,0.10950365]
[1739306857814,0.001,95160.0,95151.0,0.10750365]
[1739306858013,0.14871167,95161.0,95151.0,0.10450365]
[1739306858241,0.29742334,95161.0,95151.0,0.10450365]
[1739306859224,0.29742334,95161.0,95151.0,0.10650365]
[1739306859453,0.29842334,95161.0,95151.0,0.002]
[1739306859689,0.29842334,95161.0,95151.0,0.005]
[1739306859931,0.14971167,95161.0,95151.0,0.002]
[1739306860157,0.14971167,95161.0,95151.0,0.0032]
[1739306860407,0.14971167,95161.0,95153.0,0.0789]
[1739306860656,0.14971167,95161.0,95154.0,0.10250365]
[1739306861301,0.14871167,95161.0,95154.0,0.10250365]
[1739306862557,0.14971167,95161.0,95153.0,0.0799]
[1739306862717,0.14971167,95161.0,95154.0,0.002]